bitfinex/quotes_SOLUSD_20240711
["timestamp","ask_amount","ask_price","bid_price","bid_amount"]
[1720679770096,0.835117,141.96,141.94,11.71]
[1720679772112,0.835117,141.96,141.93,11.71]
[1720679773119,0.835117,141.96,141.94,11.71]
[1720679774418,0.835117,141.96,141.89,46.84]
[1720679774632,0.835117,141.96,141.93,11.71]
[1720679775215,0.835117,141.96,141.94,11.71]
[1720679777921,0.835117,141.96,141.88,16.4563]
[1720679778221,12.545117,141.96,141.91,11.71]
[1720679779426,11.71,141.95,141.9,11.71]
[1720679780499,12.545117,141.96,141.91,11.71]
[1720679781201,0.835117,141.96,141.93,11.71]
[1720679782125,0.835117,141.96,141.92,11.71]
[1720679782623,12.545117,141.96,141.91,11.71]
[1720679782999,11.88,141.95,141.9,11.71]
[1720679787542,22.9322,141.94,141.85,16.3441]
[1720679787745,34.6422,141.94,141.86,20.0]
[1720679787916,11.71,141.93,141.88,11.71]
[1720679788114,0.17,141.92,141.88,11.71]
[1720679789139,34.6422,141.94,141.89,11.71]
[1720679789334,22.9322,141.94,141.9,11.71]
[1720679790014,0.835117,141.96,141.9,11.71]
[1720679790217,0.835117,141.96,141.93,11.71]
[1720679790618,0.835117,141.96,141.89,28.1089]
[1720679790820,12.545117,141.96,141.91,11.71]
[1720679791031,12.545117,141.96,141.92,20.0]
[1720679791618,11.88,141.95,141.85,22.3905]
[1720679791830,11.88,141.95,141.9,11.71]
[1720679792339,12.545117,141.96,141.9,11.71]
[1720679792528,12.545117,141.96,141.91,11.71]
[1720679793933,11.71,141.95,141.9,11.71]
[1720679794139,0.17,141.94,141.9,11.71]
[1720679794743,11.71,141.95,141.9,11.71]
[1720679794945,12.545117,141.96,141.91,11.71]
[1720679795319,0.835117,141.96,141.91,11.71]
[1720679795639,0.17,141.95,141.91,11.71]
[1720679795814,0.17,141.95,141.86,45.0]
[1720679795815,11.88,141.95,141.9,11.71]
[1720679797539,11.71,141.94,141.89,11.71]
[1720679797742,11.71,141.94,141.9,20.0]
[1720679800145,11.71,141.92,141.88,11.71]
[1720679801026,0.17,141.93,141.88,11.71]
[1720679801234,11.71,141.93,141.89,11.71]
[1720679801842,11.88,141.94,141.89,11.71]
[1720679803841,11.88,141.94,141.82,6.2454]
[1720679803842,11.71,141.9,141.82,6.2454]
[1720679804041,11.71,141.89,141.81,15.1624]
[1720679804244,21.9972,141.9,141.84,11.71]
[1720679804426,33.5372,141.9,141.85,11.71]
[1720679804742,11.88,141.89,141.84,11.71]
[1720679805131,11.71,141.87,141.82,11.71]
[1720679805547,0.17,141.86,141.82,11.71]
[1720679805742,21.8272,141.9,141.82,11.71]
[1720679806043,11.71,141.88,141.83,11.71]
[1720679806764,0.17,141.87,141.83,11.71]
[1720679807748,11.88,141.87,141.78,28.1955631]
[1720679807937,11.88,141.87,141.82,11.71]
[1720679809536,0.17,141.87,141.83,11.71]
[1720679816142,0.17,141.87,141.79,45.0]
[1720679816456,0.17,141.87,141.83,11.71]
[1720679818546,0.17,141.87,141.84,11.71]
[1720679821134,21.8272,141.9,141.86,11.71]
[1720679822564,33.5372,141.9,141.85,11.71]
[1720679822735,0.17,141.89,141.85,11.71]
[1720679822930,11.88,141.89,141.79,45.0]
[1720679823156,11.71,141.88,141.83,11.71]
[1720679823959,11.88,141.89,141.84,11.71]
[1720679825542,11.88,141.89,141.8,20.0]
[1720679825543,0.17,141.89,141.85,11.71]
[1720679826765,0.17,141.89,141.8,20.0]
[1720679826947,0.17,141.89,141.85,11.71]
[1720679827158,11.88,141.89,141.8,20.0]
[1720679827463,0.17,141.89,141.84,11.71]
[1720679827848,21.8272,141.9,141.86,11.71]
[1720679831362,33.5372,141.9,141.86,11.71]
[1720679831564,21.8272,141.9,141.86,11.71]
[1720679831954,21.8272,141.9,141.8,20.0]
[1720679831955,33.5372,141.9,141.8,20.0]
[1720679832147,11.71,141.87,141.78,15.7899]
[1720679832450,0.17,141.86,141.78,15.7899]
[1720679832647,11.88,141.86,141.78,15.7899]
[1720679832842,0.17,141.86,141.8,11.71]
[1720679833070,33.4813,141.85,141.8,11.71]
[1720679833273,33.4813,141.85,141.74,28.3167631]
[1720679833609,0.17,141.84,141.8,11.71]
[1720679834593,11.88,141.84,141.8,11.71]
[1720679834994,0.17,141.84,141.8,11.71]
[1720679835886,11.88,141.84,141.8,11.71]
[1720679836806,11.88,141.84,141.79,11.71]
[1720679837201,0.17,141.84,141.8,11.71]
[1720679837405,0.17,141.84,141.75,46.84]
[1720679837604,21.2029,141.93,141.82,11.71]
[1720679837790,21.2029,141.93,141.83,11.71]
[1720679837791,11.71,141.88,141.83,11.71]
[1720679838301,11.71,141.87,141.76,45.0]
[1720679838504,11.71,141.87,141.82,11.71]
[1720679838905,11.71,141.86,141.76,45.0]
[1720679839111,0.17,141.85,141.81,11.71]
[1720679839598,11.88,141.85,141.81,11.71]
[1720679840085,11.88,141.85,141.76,45.0]
[1720679840397,0.17,141.85,141.82,11.71]
[1720679840597,11.71,141.87,141.82,11.71]
[1720679840803,0.17,141.86,141.82,11.71]
[1720679841485,21.2029,141.88,141.83,11.71]
[1720679841486,0.17,141.87,141.83,11.71]
[1720679841885,11.88,141.87,141.82,11.71]
[1720679842305,11.88,141.87,141.77,20.0]
[1720679842499,11.88,141.87,141.82,11.71]
[1720679842888,11.71,141.86,141.81,11.71]
[1720679843099,0.17,141.87,141.82,11.71]
[1720679843300,11.88,141.87,141.82,11.71]
[1720679845706,0.17,141.87,141.84,11.71]
[1720679845888,22.4334,141.91,141.84,11.71]
[1720679846208,11.71,141.89,141.84,11.71]
[1720679846703,0.17,141.88,141.84,11.71]
[1720679847319,11.71,141.86,141.81,11.71]
[1720679848014,21.9449,141.85,141.8,11.71]
[1720679848320,21.9449,141.85,141.81,11.71]
[1720679848621,0.17,141.84,141.81,11.71]
[1720679849115,0.17,141.84,141.8,11.71]
[1720679849720,15.4383,141.88,141.81,20.0]
[1720679850016,18.2228,141.9,141.86,11.71]
[1720679850883,6.5128,141.9,141.86,11.71]
[1720679851089,0.17,141.89,141.86,11.71]
[1720679851612,0.17,141.89,141.87,11.71]
[1720679851835,27.1483,141.92,141.87,11.71]
[1720679852992,11.71,141.91,141.86,11.71]
[1720679853513,0.17,141.9,141.86,11.71]
[1720679853688,11.88,141.9,141.81,20.0]
[1720679853892,11.71,141.89,141.85,11.71]
[1720679854190,0.17,141.88,141.85,11.71]
[1720679854498,0.17,141.89,141.86,11.71]
[1720679854803,11.71,141.91,141.86,11.71]
[1720679855110,0.17,141.9,141.86,11.71]
[1720679856495,15.4383,141.92,141.82,46.84]
[1720679856496,27.1483,141.92,141.82,46.84]
[1720679856709,0.17,141.91,141.87,11.71]
[1720679857021,27.1483,141.92,141.87,11.71]
[1720679858396,0.17,141.91,141.87,11.71]
[1720679862502,11.88,141.91,141.83,20.0]
[1720679862698,11.88,141.91,141.79,15.8272]
[1720679862699,11.88,141.91,141.86,11.71]
[1720679864540,11.88,141.91,141.85,11.71]
[1720679864999,11.71,141.9,141.85,11.71]
[1720679865512,0.17,141.89,141.85,11.71]
[1720679866405,0.17,141.89,141.8,20.0]
[1720679866406,15.4383,141.92,141.8,20.0]
[1720679866611,0.17,141.91,141.87,11.71]
[1720679867528,11.71,141.9,141.81,45.0]
[1720679867733,11.71,141.9,141.85,11.71]
[1720679868037,0.17,141.89,141.85,11.71]
[1720679869908,15.4383,141.92,141.88,11.71]
[1720679870330,15.4383,141.92,141.84,15.2038]
[1720679870331,27.1483,141.92,141.87,11.71]
[1720679871114,0.17,141.91,141.87,11.71]
[1720679871841,0.17,141.91,141.84,15.2038]
[1720679872007,11.88,141.91,141.86,11.71]
[1720679872433,11.71,141.9,141.85,11.71]
[1720679872843,0.17,141.89,141.85,11.71]
[1720679875142,0.17,141.89,141.86,11.71]
[1720679875435,11.71,141.91,141.86,11.71]
[1720679875606,0.17,141.9,141.86,11.71]
[1720679875943,11.88,141.9,141.85,11.71]
[1720679876632,0.17,141.9,141.85,11.71]
[1720679876850,11.71,141.91,141.86,11.71]
[1720679877016,0.17,141.9,141.86,11.71]
[1720679877731,11.88,141.91,141.86,11.71]
[1720679879354,11.88,141.91,141.82,66.84]
[1720679879550,11.71,141.9,141.85,11.71]
[1720679880060,0.17,141.89,141.85,11.71]
[1720679880258,0.17,141.89,141.78,22.4966]
[1720679880431,0.17,141.89,141.82,11.71]
[1720679880432,11.71,141.87,141.82,11.71]
[1720679880630,11.71,141.86,141.81,11.71]
[1720679881558,28.4157,141.87,141.82,11.71]
[1720679881741,28.2457,141.87,141.82,11.71]
[1720679881933,0.17,141.86,141.82,11.71]
[1720679884666,11.71,141.85,141.76,6.3928631]
[1720679884867,11.71,141.85,141.8,11.71]
[1720679885038,0.17,141.84,141.8,11.71]
[1720679887353,0.17,141.84,141.79,11.71]
[1720679887536,11.88,141.84,141.79,11.71]
[1720679888957,11.88,141.84,141.75,68.2826]
[1720679889140,11.71,141.81,141.72,22.8040631]
[1720679889346,11.71,141.8,141.75,11.71]
[1720679889560,0.17,141.79,141.75,11.71]
[1720679891453,0.17,141.79,141.76,11.71]
[1720679891852,0.17,141.79,141.75,11.71]
[1720679892941,0.17,141.79,141.72,16.4112]
[1720679893143,0.17,141.79,141.75,11.71]
[1720679895967,0.17,141.79,141.73,20.0]
[1720679895968,0.17,141.79,141.76,11.71]
[1720679896148,11.71,141.81,141.76,11.71]
[1720679896349,0.17,141.8,141.76,11.71]
[1720679896877,11.88,141.8,141.75,11.71]
[1720679898156,0.17,141.8,141.75,11.71]
[1720679898357,11.71,141.81,141.76,11.71]
[1720679898552,0.17,141.8,141.76,11.71]
[1720679899050,15.2345,141.82,141.78,11.71]
[1720679899377,26.9445,141.82,141.77,11.71]
[1720679899541,26.9445,141.82,141.73,20.0]
[1720679899748,26.9445,141.82,141.77,11.71]
[1720679900562,0.17,141.81,141.77,11.71]
[1720679903076,11.88,141.81,141.76,11.71]
[1720679903777,0.17,141.81,141.77,11.71]
[1720679904866,0.17,141.81,141.74,1.41066437]
[1720679905071,0.17,141.81,141.77,11.71]
[1720679906576,11.88,141.81,141.76,11.71]
[1720679907978,0.17,141.81,141.77,11.71]
[1720679908979,11.88,141.81,141.77,11.71]
[1720679909485,11.88,141.81,141.74,1.41066437]
[1720679909662,11.88,141.81,141.77,11.71]
[1720679909861,11.88,141.81,141.76,11.71]
[1720679911687,11.88,141.81,141.73,20.0]
[1720679911895,11.71,141.8,141.75,11.71]
[1720679916490,11.88,141.81,141.76,11.71]
[1720679917172,0.17,141.81,141.76,11.71]
[1720679917373,0.17,141.81,141.77,11.71]
[1720679918989,6.2766,141.85,141.78,1.41024964]
[1720679919198,6.2766,141.85,141.79,1.40995125]
[1720679919371,17.9866,141.85,141.8,11.71]
[1720679920592,6.2766,141.85,141.8,11.71]
[1720679920806,17.9866,141.85,141.8,11.71]
[1720679922887,11.71,141.84,141.8,11.71]
[1720679923088,11.71,141.81,141.76,20.0]
[1720679923286,11.71,141.81,141.73,20.0]
[1720679923492,11.71,141.81,141.76,11.71]
[1720679923685,11.71,141.81,141.77,20.0]
[1720679924079,11.71,141.81,141.77,31.71]
[1720679924479,11.71,141.82,141.77,31.71]
[1720679925091,0.17,141.81,141.77,31.71]
[1720679926095,11.88,141.81,141.77,20.0]
[1720679926284,11.88,141.81,141.76,11.71]
[1720679929194,11.71,141.8,141.75,11.71]
[1720679929792,11.71,141.8,141.72,16.4112]
[1720679929975,11.71,141.8,141.75,11.71]
[1720679930373,11.71,141.79,141.74,11.71]
[1720679930584,0.17,141.78,141.74,11.71]
[1720679930787,22.7384,141.81,141.72,16.4112]
[1720679931096,0.17,141.8,141.76,11.71]
[1720679931499,0.17,141.8,141.72,16.4112]
[1720679931500,0.17,141.8,141.77,11.71]
[1720679932486,0.17,141.8,141.76,11.71]
[1720679932881,11.88,141.8,141.76,11.71]
[1720679933083,0.17,141.8,141.76,11.71]
[1720679934585,11.71,141.82,141.77,11.71]
[1720679934780,61.3031,141.84,141.78,11.71]
[1720679935081,11.88,141.83,141.78,11.71]
[1720679935479,0.17,141.83,141.78,11.71]
[1720679935685,11.88,141.83,141.78,11.71]
[1720679935892,11.71,141.82,141.78,11.71]
[1720679936096,11.71,141.82,141.77,11.71]
[1720679936801,11.88,141.83,141.78,11.71]
[1720679938499,0.17,141.83,141.78,11.71]
[1720679938805,11.88,141.83,141.78,11.71]
[1720679940195,11.71,141.82,141.77,11.71]
[1720679940709,11.71,141.82,141.72,16.4112]
[1720679940909,11.88,141.83,141.78,11.71]
[1720679942421,6.0914,141.85,141.81,11.71]
[1720679943409,16.3512,141.88,141.77,15.0413]
[1720679943616,28.0612,141.88,141.83,11.71]
[1720679944818,28.0612,141.88,141.78,45.0]
[1720679944819,11.71,141.87,141.82,11.71]
[1720679945190,11.71,141.86,141.82,11.71]
[1720679945387,11.71,141.86,141.78,45.0]
[1720679945695,0.17,141.85,141.81,11.71]
[1720679947525,11.71,141.86,141.81,11.71]
[1720679947824,11.88,141.87,141.82,11.71]
[1720679948502,11.71,141.86,141.81,11.71]
[1720679949832,0.17,141.85,141.81,11.71]
[1720679950315,0.17,141.85,141.82,11.71]
[1720679950620,0.17,141.86,141.79,20.0]
[1720679950822,11.71,141.86,141.81,11.71]
[1720679951022,11.88,141.85,141.77,15.0413]
[1720679951233,11.71,141.84,141.79,11.71]
[1720679951605,0.17,141.83,141.79,11.71]
[1720679952402,0.17,141.83,141.8,11.71]
[1720679952904,11.71,141.85,141.8,11.71]
[1720679953103,0.17,141.84,141.8,11.71]
[1720679955725,11.88,141.84,141.77,15.0413]
[1720679955913,11.88,141.84,141.79,11.71]
[1720679957927,0.17,141.84,141.8,11.71]
[1720679958308,16.3512,141.88,141.8,11.71]
[1720679958508,11.71,141.86,141.81,11.71]
[1720679959017,0.17,141.85,141.81,11.71]
[1720679961332,11.88,141.85,141.8,11.71]
[1720679961925,11.71,141.84,141.79,11.71]
[1720679963618,11.71,141.82,141.74,6.3928631]
[1720679963819,11.71,141.82,141.77,11.71]
[1720679966712,16.8119,141.83,141.77,11.71]
[1720679966916,11.71,141.82,141.77,11.71]
[1720679968236,28.5219,141.83,141.77,11.71]
[1720679968422,28.5219,141.83,141.78,11.71]
[1720679970929,16.6419,141.83,141.79,11.71]
[1720679971229,15.8716,141.87,141.81,11.71]
[1720679971429,11.88,141.86,141.81,11.71]
[1720679971817,11.71,141.85,141.81,11.71]
[1720679972025,11.71,141.84,141.75,46.84]
[1720679972351,0.17,141.83,141.79,11.71]
[1720679973538,11.71,141.84,141.79,11.71]
[1720679974048,0.17,141.83,141.79,11.71]
[1720679975023,11.88,141.83,141.76,20.0]
[1720679975223,11.88,141.83,141.78,11.71]
[1720679977952,11.88,141.83,141.74,20.0]
[1720679978251,11.88,141.83,141.77,11.71]
[1720679978252,18.1518,141.83,141.77,11.71]
[1720679978459,18.1518,141.83,141.78,11.71]
[1720679979357,11.71,141.81,141.76,11.71]
[1720679980551,0.17,141.8,141.76,11.71]
[1720679980933,11.88,141.8,141.75,11.71]
[1720679981630,11.88,141.8,141.76,11.71]
[1720679982563,11.88,141.8,141.75,11.71]
[1720679983362,11.88,141.8,141.71,9.21623273]
[1720679983570,11.88,141.8,141.75,11.71]
[1720679985269,11.71,141.79,141.74,11.71]
[1720679985658,0.17,141.78,141.74,11.71]
[1720679987682,11.71,141.8,141.75,11.71]
[1720679987973,0.17,141.79,141.76,11.71]
[1720679988175,11.71,141.81,141.76,11.71]
[1720679988469,0.17,141.8,141.76,11.71]
[1720679989673,15.846,141.82,141.78,11.71]
[1720679990265,27.556,141.82,141.77,11.71]
[1720679990456,0.17,141.81,141.77,11.71]
[1720679990656,11.88,141.81,141.76,11.71]
[1720679991976,11.88,141.81,141.71,16.0774]
[1720679992178,11.71,141.8,141.72,65.0]
[1720679992371,11.71,141.8,141.75,11.71]
[1720679992559,0.17,141.79,141.76,20.0]
[1720679992959,0.17,141.79,141.75,11.71]
[1720679993962,11.71,141.81,141.76,11.71]
[1720679994163,0.17,141.8,141.77,11.71]
[1720679994873,15.846,141.82,141.77,11.71]
[1720679994874,27.556,141.82,141.77,11.71]
[1720679995070,0.17,141.81,141.77,11.71]
[1720679997683,11.88,141.81,141.76,11.71]
[1720679998477,11.71,141.8,141.75,11.71]
[1720679998865,0.17,141.79,141.71,16.0774]
[1720679999191,0.17,141.79,141.75,11.71]
[1720680001680,27.556,141.82,141.77,11.71]
[1720680002021,0.17,141.81,141.77,11.71]
[1720680004094,15.846,141.82,141.78,11.71]
[1720680004391,15.846,141.82,141.73,45.0]
[1720680004584,15.846,141.82,141.79,11.71]
[1720680005399,15.846,141.82,141.73,45.0]
[1720680005576,27.556,141.82,141.74,20.0]
[1720680005778,27.556,141.82,141.77,11.71]
[1720680005994,11.88,141.81,141.76,11.71]
[1720680006498,11.71,141.8,141.69,6.3928631]
[1720680006798,11.71,141.8,141.75,11.71]
[1720680007002,0.17,141.79,141.75,11.71]
[1720680009085,0.17,141.79,141.76,11.71]
[1720680011513,15.846,141.82,141.76,11.71]
[1720680011696,15.846,141.82,141.69,9.25372478]
[1720680011697,27.556,141.82,141.77,11.71]
[1720680011896,0.17,141.81,141.77,11.71]
[1720680012195,11.88,141.81,141.76,11.71]
[1720680015011,0.17,141.81,141.77,11.71]
[1720680016594,11.88,141.81,141.76,11.71]
[1720680017013,0.17,141.81,141.76,11.71]
[1720680017214,0.17,141.81,141.77,11.71]
[1720680018493,11.88,141.81,141.76,11.71]
[1720680020421,11.71,141.79,141.69,6.3928631]
[1720680020713,0.17,141.78,141.74,11.71]
[1720680027224,11.71,141.8,141.75,11.71]
[1720680027403,15.846,141.82,141.76,11.71]
[1720680027722,11.88,141.81,141.76,11.71]
[1720680027924,11.71,141.81,141.76,11.71]
[1720680028301,15.846,141.82,141.76,11.71]
[1720680028598,11.71,141.81,141.76,11.71]
[1720680029529,15.846,141.82,141.78,11.71]
[1720680029723,27.556,141.82,141.77,11.71]
[1720680030236,27.556,141.82,141.72,20.0]
[1720680030517,27.556,141.82,141.76,11.71]
[1720680030518,11.71,141.81,141.76,11.71]
[1720680031097,27.726,141.82,141.77,11.71]
[1720680031323,27.556,141.82,141.77,11.71]
[1720680031524,0.17,141.81,141.77,11.71]
[1720680036134,15.846,141.82,141.79,11.71]
[1720680036319,15.846,141.82,141.8,11.71]
[1720680036527,46.84,141.89,141.8,11.71]
[1720680036528,16.1193,141.86,141.8,11.71]
[1720680036831,16.1193,141.86,141.82,11.71]
[1720680037438,27.8293,141.86,141.82,11.71]
[1720680038432,16.1193,141.86,141.82,11.71]
[1720680038628,45.17,141.85,141.76,1.41016439]
[1720680038811,45.17,141.85,141.8,11.71]
[1720680038812,11.88,141.85,141.8,11.71]
[1720680039011,11.88,141.85,141.81,11.71]
[1720680039630,0.17,141.85,141.81,11.71]
[1720680041724,16.1193,141.86,141.81,11.71]
[1720680041922,16.1193,141.86,141.82,11.71]
[1720680042719,27.8293,141.86,141.81,11.71]
[1720680043128,0.17,141.85,141.81,11.71]
[1720680046622,0.17,141.85,141.82,11.71]
[1720680048339,16.1193,141.86,141.83,11.71]
[1720680053844,6.4627,141.87,141.83,11.71]
[1720680054921,6.4627,141.87,141.84,11.71]
[1720680057246,0.17,141.88,141.84,11.71]
[1720680057436,27.4617,141.89,141.84,11.71]
[1720680057636,0.17,141.88,141.84,11.71]
[1720680059343,0.17,141.88,141.78,6.0275]
[1720680059654,0.17,141.88,141.85,11.71]
[1720680060233,0.17,141.88,141.84,11.71]
[1720680060461,0.17,141.88,141.85,11.71]
[1720680060651,0.17,141.88,141.79,65.0]
[1720680060858,11.71,141.87,141.83,11.71]
[1720680061961,11.88,141.88,141.83,11.71]
[1720680065357,0.17,141.88,141.83,11.71]
[1720680065547,11.88,141.88,141.83,11.71]
[1720680070172,0.17,141.88,141.83,11.71]
[1720680070476,11.88,141.88,141.83,11.71]
[1720680073167,0.17,141.88,141.84,11.71]
[1720680073374,0.17,141.88,141.85,11.71]
[1720680073575,0.17,141.88,141.79,65.0]
[1720680073576,11.71,141.91,141.86,11.71]
[1720680074277,11.71,141.91,141.87,11.71]
[1720680074858,11.71,141.91,141.82,46.84]
[1720680075072,11.88,141.9,141.85,11.71]
[1720680075954,0.17,141.9,141.86,11.71]
[1720680077364,0.17,141.9,141.87,11.71]
[1720680077661,11.88,141.91,141.81,15.0201]
[1720680077977,11.71,141.9,141.85,11.71]
[1720680078366,11.71,141.91,141.86,11.71]
[1720680078577,0.17,141.9,141.86,11.71]
[1720680084865,0.17,141.9,141.87,11.71]
[1720680085061,0.17,141.91,141.87,11.71]
[1720680086481,0.17,141.91,141.88,11.71]
[1720680086659,27.5179,141.93,141.88,11.71]
[1720680086866,11.88,141.92,141.87,11.71]
[1720680088984,11.88,141.92,141.88,11.71]
[1720680089482,11.88,141.92,141.87,11.71]
[1720680104395,0.17,141.92,141.88,11.71]
[1720680105976,6.1342,141.94,141.9,11.71]
[1720680106595,6.1342,141.94,141.85,15.1879]
[1720680106905,17.8442,141.94,141.89,11.71]
[1720680107384,0.17,141.93,141.89,11.71]
[1720680107698,45.17,141.93,141.86,20.0]
[1720680107994,45.17,141.93,141.88,11.71]
[1720680108298,0.17,141.93,141.89,11.71]
[1720680109005,0.17,141.93,141.88,11.71]
[1720680112703,0.17,141.93,141.89,11.71]
[1720680113097,0.17,141.93,141.9,11.71]
[1720680115407,0.17,141.93,141.89,11.71]
[1720680117392,0.17,141.93,141.86,20.0]
[1720680117599,56.88,141.93,141.88,11.71]
[1720680117895,45.17,141.93,141.89,11.71]
[1720680118296,56.88,141.93,141.88,11.71]
[1720680119803,45.17,141.93,141.89,11.71]
[1720680120012,0.17,141.93,141.89,11.71]
[1720680120199,0.17,141.93,141.9,11.71]
[1720680120894,11.71,141.95,141.9,11.71]
[1720680122010,0.17,141.94,141.9,11.71]
[1720680124011,11.88,141.95,141.9,11.71]
[1720680125515,0.17,141.95,141.9,11.71]
[1720680125904,11.88,141.95,141.9,11.71]
[1720680126402,11.71,141.94,141.86,20.0]
[1720680126611,0.17,141.93,141.89,11.71]
[1720680127523,0.17,141.93,141.9,11.71]
[1720680127809,45.835117,141.96,141.9,11.71]
[1720680128011,0.17,141.95,141.91,11.71]
[1720680130420,0.17,141.95,141.93,11.71]
[1720680131002,0.835117,141.96,141.93,11.71]
[1720680131525,0.835117,141.96,141.94,11.71]
[1720680134526,0.835117,141.96,141.89,62.1415]
[1720680134730,0.835117,141.96,141.95,11.71]
[1720680138121,0.835117,141.96,141.91,6.0326]
[1720680138327,0.835117,141.96,141.95,11.71]
[1720680140149,0.835117,141.96,141.91,6.0326]
[1720680140420,0.835117,141.96,141.95,11.71]
[1720680141899,0.835117,141.96,141.91,6.0326]
[1720680142231,0.835117,141.96,141.95,11.71]
[1720680153240,0.835117,141.96,141.89,16.1949]
[1720680153408,0.835117,141.96,141.92,11.71]
[1720680155754,0.17,141.95,141.91,11.71]
[1720680157021,0.17,141.95,141.92,11.71]
[1720680160009,0.17,141.95,141.91,11.71]
[1720680160433,0.17,141.95,141.9,11.71]
[1720680160631,11.71,141.94,141.89,11.71]
[1720680162129,6.394,141.95,141.85,16.1219]
[1720680162328,11.71,141.92,141.87,11.71]
[1720680163028,11.71,141.91,141.83,6.1798]
[1720680163220,11.71,141.91,141.86,11.71]
[1720680165420,11.71,141.91,141.83,6.1798]
[1720680165618,28.293,141.91,141.86,11.71]
[1720680165824,11.71,141.9,141.84,20.0]
[1720680166140,11.71,141.9,141.85,11.71]
[1720680167151,6.0341,141.89,141.82,20.0]
[1720680167324,11.71,141.88,141.83,11.71]
[1720680167719,17.9141,141.89,141.84,11.71]
[1720680169019,6.2041,141.89,141.85,11.71]
[1720680170622,0.17,141.89,141.85,11.71]
[1720680171128,0.17,141.89,141.82,11.71]
[1720680171335,0.17,141.89,141.86,11.71]
[1720680172227,11.71,141.9,141.86,11.71]
[1720680172820,16.753,141.91,141.86,11.71]
[1720680173018,16.753,141.91,141.83,15.7328]
[1720680173019,28.293,141.91,141.87,11.71]
[1720680173433,16.583,141.91,141.87,11.71]
[1720680175235,11.71,141.9,141.85,11.71]
[1720680175427,11.71,141.89,141.84,11.71]
[1720680177642,11.71,141.88,141.76,7.46758004]